fUSD/lending_fUSD_20250720
["ID","MTS","AMOUNT","RATE_DAILY","PERIOD"]
[373392372,1752983458782,-691.65,0.00019397,2]
[373392374,1752983458791,-480.0,0.00019397,2]
[373392376,1752983458801,-480.0,0.00019397,2]
[373392379,1752983458811,-480.0,0.00019397,2]
[373392381,1752983458820,-480.0,0.00019397,2]
[373392383,1752983458830,-480.0,0.00019397,2]
[373392385,1752983458839,-480.0,0.00019397,2]
[373392387,1752983458848,-480.0,0.00019397,2]
[373392389,1752983458858,-511.78,0.00019397,2]
[373392391,1752983458867,-480.0,0.00019397,2]
[373392393,1752983458876,-480.0,0.00019397,2]
[373392395,1752983458885,-480.0,0.00019397,2]
[373392397,1752983458895,-480.0,0.00019397,2]
[373392399,1752983458904,-480.0,0.00019397,2]
[373392401,1752983458913,-480.0,0.00019397,2]
[373392403,1752983458925,-481.61,0.00019397,2]
[373392404,1752983458935,-480.0,0.00019397,2]
[373392406,1752983458944,-1456.33,0.00019397,2]
[373392408,1752983458953,-480.0,0.00019397,2]
[373392410,1752983458962,-577.39,0.00019397,2]
[373392412,1752983458973,-480.0,0.00019397,2]
[373392415,1752983458982,-569.49,0.00019397,2]
[373392416,1752983458992,-480.0,0.00019397,2]
[373392418,1752983459004,-480.0,0.00019397,2]
[373392420,1752983459014,-480.0,0.00019397,2]
[373392423,1752983459024,-206.692879,0.00019397,2]
[373392424,1752983459035,-480.0,0.00019397,2]
[373392427,1752983459045,-480.0,0.00019397,2]
[373392429,1752983459054,-480.0,0.00019397,2]
[373392431,1752983459064,-495.68,0.00019397,2]
[373392432,1752983459073,-480.0,0.00019397,2]
[373392434,1752983459083,-480.0,0.00019397,2]
[373392436,1752983459092,-480.0,0.00019397,2]
[373392437,1752983459101,-480.0,0.00019397,2]
[373392438,1752983459110,-480.0,0.00019397,2]
[373392439,1752983459119,-480.0,0.00019397,2]
[373392440,1752983459128,-191.28762484,0.00019397,2]
[373392441,1752983459137,-480.0,0.00019397,2]
[373392442,1752983459147,-1715.52,0.00019397,2]
[373392443,1752983459156,-480.0,0.00019397,2]
[373392445,1752983459165,-877.24,0.00019397,2]
[373392447,1752983459175,-375.83789721,0.00019397,2]
[373392449,1752983459184,-480.0,0.00019397,2]
[373392451,1752983459193,-480.0,0.00019397,2]
[373392453,1752983459202,-480.0,0.00019397,2]
[373392455,1752983459212,-480.0,0.00019397,2]
[373392457,1752983459222,-480.0,0.00019397,2]
[373392459,1752983459231,-480.0,0.00019397,2]
[373392461,1752983459240,-480.0,0.00019397,2]
[373392463,1752983459250,-749.25,0.00019397,2]
[373392465,1752983459259,-480.0,0.00019397,2]
[373392467,1752983459269,-480.0,0.00019397,2]
[373392469,1752983459278,-480.0,0.00019397,2]
[373392471,1752983459287,-480.0,0.00019397,2]
[373392473,1752983459297,-670.57,0.00019397,2]
[373392475,1752983459306,-541.28,0.00019397,2]
[373392477,1752983459315,-769.19,0.00019397,2]
[373392479,1752983459324,-634.92,0.00019397,2]
[373392481,1752983459334,-480.0,0.00019397,2]
[373392483,1752983459343,-480.0,0.00019397,2]
[373392485,1752983459352,-480.0,0.00019397,2]
[373392487,1752983459361,-1354.22,0.00019397,2]
[373392489,1752983459372,-1092.47,0.00019397,2]
[373392491,1752983459381,-480.0,0.00019397,2]
[373392493,1752983459391,-480.0,0.00019397,2]
[373392495,1752983459400,-480.0,0.00019397,2]
[373392497,1752983459409,-480.0,0.00019397,2]
[373392499,1752983459419,-480.0,0.00019397,2]
[373392501,1752983459428,-480.0,0.00019397,2]
[373392503,1752983459437,-480.0,0.00019397,2]
[373392505,1752983459446,-717.34,0.00019397,2]
[373392507,1752983459455,-599.74,0.00019397,2]
[373392509,1752983459465,-453.12326139,0.00019397,2]
[373392511,1752983459475,-840.34,0.00019397,2]
[373392513,1752983459484,-480.0,0.00019397,2]
[373392515,1752983459494,-2426.64,0.00019397,2]
[373392518,1752983459503,-480.0,0.00019397,2]
[373392519,1752983459512,-616.16,0.00019397,2]
[373392521,1752983459522,-722.53,0.00019397,2]
[373392523,1752983459531,-598.54,0.00019397,2]
[373392526,1752983459541,-480.0,0.00019397,2]
[373392528,1752983459551,-480.0,0.00019397,2]
[373392530,1752983459560,-480.0,0.00019397,2]
[373392532,1752983459569,-480.0,0.00019397,2]
[373392534,1752983459578,-861.79,0.00019397,2]
[373392536,1752983459588,-480.0,0.00019397,2]
[373392537,1752983459597,-586.0,0.00019397,2]
[373392539,1752983459606,-480.0,0.00019397,2]
[373392542,1752983459616,-480.0,0.00019397,2]
[373392543,1752983459625,-480.0,0.00019397,2]
[373392545,1752983459634,-480.0,0.00019397,2]
[373392547,1752983459643,-480.0,0.00019397,2]
[373392549,1752983459653,-480.0,0.00019397,2]
[373392551,1752983459662,-2497.32,0.00019397,2]
[373392553,1752983459671,-535.24,0.00019397,2]
[373392555,1752983459681,-480.0,0.00019397,2]
[373392557,1752983459690,-480.0,0.00019397,2]
[373392559,1752983459699,-480.0,0.00019397,2]
[373392561,1752983459709,-480.0,0.00019397,2]
[373392563,1752983459718,-557.5,0.00019397,2]
[373392565,1752983459727,-480.0,0.00019397,2]
[373392568,1752983459737,-907.84,0.00019397,2]
[373392570,1752983459748,-480.0,0.00019397,2]
[373392572,1752983459758,-480.0,0.00019397,2]
[373392574,1752983459767,-865.51,0.00019397,2]
[373392576,1752983459778,-480.0,0.00019397,2]
[373392578,1752983459787,-480.0,0.00019397,2]
[373392580,1752983459797,-3620.19,0.00019397,2]
[373392582,1752983459806,-480.0,0.00019397,2]
[373392584,1752983459816,-480.0,0.00019397,2]
[373392586,1752983459825,-480.0,0.00019397,2]
[373392588,1752983459834,-480.0,0.00019397,2]
[373392590,1752983459844,-480.0,0.00019397,2]
[373392592,1752983459853,-480.0,0.00019397,2]
[373392594,1752983459863,-480.0,0.00019397,2]
[373392596,1752983459873,-480.0,0.00019397,2]
[373392598,1752983459882,-560.23,0.00019397,2]
[373392600,1752983459892,-603.48,0.00019397,2]
[373392602,1752983459901,-480.0,0.00019397,2]
[373392604,1752983459911,-480.0,0.00019397,2]
[373392606,1752983459924,-582.39356306,0.00019397,2]
[373392608,1752983459934,-480.0,0.00019397,2]
[373392610,1752983459944,-480.0,0.00019397,2]
[373392612,1752983459953,-480.0,0.00019397,2]
[373392614,1752983459963,-480.0,0.00019397,2]
[373392616,1752983459972,-1069.69,0.00019397,2]
[373392618,1752983459982,-480.0,0.00019397,2]
[373392620,1752983459992,-480.0,0.00019397,2]
[373392622,1752983460003,-480.0,0.00019397,2]
[373392624,1752983460012,-480.0,0.00019397,2]
[373392632,1752983460080,-480.0,0.00019397,2]
[373392634,1752983460092,-480.0,0.00019397,2]
[373392636,1752983460101,-729.23,0.00019397,2]
[373392638,1752983460111,-480.0,0.00019397,2]
[373392640,1752983460120,-1171.35,0.00019397,2]
[373392642,1752983460130,-480.0,0.00019397,2]
[373392644,1752983460139,-622.42,0.00019397,2]
[373392646,1752983460148,-576.89,0.00019397,2]
[373392648,1752983460157,-612.71,0.00019397,2]
[373392650,1752983460167,-1058.61,0.00019397,2]
[373392652,1752983460177,-547.58968454,0.00019397,2]
[373392654,1752983460186,-480.0,0.00019397,2]
[373392656,1752983460196,-434.35047936,0.00019397,2]
[373392657,1752983460205,-480.0,0.00019397,2]
[373392659,1752983460214,-569.98,0.00019397,2]
[373392661,1752983460223,-480.0,0.00019397,2]
[373392663,1752983460233,-414.81235859,0.00019397,2]
[373392665,1752983460243,-666.31,0.00019397,2]
[373392667,1752983460252,-480.0,0.00019397,2]
[373392669,1752983460262,-665.25,0.00019397,2]
[373392671,1752983460272,-480.0,0.00019397,2]
[373392673,1752983460281,-564.81,0.00019397,2]
[373392675,1752983460291,-480.0,0.00019397,2]
[373392677,1752983460301,-998.92,0.00019397,2]
[373392679,1752983460310,-480.0,0.00019397,2]
[373392681,1752983460320,-480.0,0.00019397,2]
[373392683,1752983460329,-480.0,0.00019397,2]
[373392684,1752983460338,-1362.16,0.00019397,2]
[373392686,1752983460348,-480.0,0.00019397,2]
[373392687,1752983460357,-480.0,0.00019397,2]
[373392688,1752983460366,-402.3827492,0.00019397,2]
[373392689,1752983460376,-4150.67,0.00019397,2]
[373392690,1752983460385,-480.0,0.00019397,2]
[373392691,1752983460394,-572.02,0.00019397,2]
[373392692,1752983460404,-944.0,0.00019397,2]
[373392693,1752983460413,-480.0,0.00019397,2]
[373392694,1752983460422,-480.0,0.00019397,2]
[373392695,1752983460433,-480.0,0.00019397,2]
[373392696,1752983460442,-480.0,0.00019397,2]
[373392697,1752983460451,-724.16,0.00019397,2]
[373392698,1752983460461,-480.0,0.00019397,2]
[373392699,1752983460471,-480.0,0.00019397,2]
[373392700,1752983460481,-480.0,0.00019397,2]
[373392701,1752983460491,-480.0,0.00019397,2]
[373392702,1752983460501,-480.0,0.00019397,2]
[373392703,1752983460511,-2786.78,0.00019397,2]
[373392704,1752983460520,-598.27,0.00019397,2]
[373392705,1752983460529,-1995.87,0.00019397,2]
[373392706,1752983460538,-480.0,0.00019397,2]
[373392707,1752983460547,-2932.88,0.00019397,2]
[373392708,1752983460556,-2112.79,0.00019397,2]
[373392709,1752983460566,-492.28,0.00019397,2]
[373392710,1752983460575,-1466.09,0.00019397,2]
[373392711,1752983460584,-480.0,0.00019397,2]
[373392712,1752983460593,-744.22,0.00019397,2]
[373392713,1752983460602,-620.4,0.00019397,2]
[373392714,1752983460611,-25668.77,0.00019397,2]
[373392715,1752983460621,-1176.16,0.00019397,2]
[373392716,1752983460630,-2179.52,0.00019397,2]
[373392717,1752983460639,-1586.62,0.00019397,2]
[373392718,1752983460648,-1189.06,0.00019397,2]
[373392719,1752983460658,-1511.3,0.00019397,2]
[373392720,1752983460667,-1000.0,0.00019397,2]
[373392721,1752983460677,-480.0,0.00019397,2]
[373392722,1752983460687,-480.0,0.00019397,2]
[373392723,1752983460696,-480.0,0.00019397,2]
[373392724,1752983460705,-2984.78,0.00019397,2]
[373392725,1752983460715,-480.0,0.00019397,2]
[373392726,1752983460724,-2090.67,0.00019397,2]
[373392727,1752983460734,-480.0,0.00019397,2]
[373392728,1752983460744,-561.29,0.00019397,2]
[373392729,1752983460753,-508.18,0.00019397,2]
[373392730,1752983460762,-480.0,0.00019397,2]
[373392731,1752983460771,-1108.76,0.00019397,2]
[373392732,1752983460780,-1074.07,0.00019397,2]
[373392733,1752983460790,-599.06,0.00019397,2]
[373392734,1752983460799,-594.66,0.00019397,2]
[373392735,1752983460808,-480.0,0.00019397,2]
[373392736,1752983460817,-677.5,0.00019397,2]
[373392737,1752983460826,-1173.26,0.00019397,2]
[373392738,1752983460835,-480.0,0.00019397,2]
[373392739,1752983460844,-480.0,0.00019397,2]
[373392740,1752983460854,-480.0,0.00019397,2]
[373392741,1752983460864,-1092.95,0.00019397,2]
[373392742,1752983460873,-480.0,0.00019397,2]
[373392743,1752983460882,-554.23,0.00019397,2]
[373392744,1752983460891,-1196.13,0.00019397,2]
[373392745,1752983460900,-621.63505177,0.00019397,2]
[373392746,1752983460909,-480.0,0.00019397,2]
[373392747,1752983460919,-2022.45,0.00019397,2]
[373392748,1752983460931,-480.0,0.00019397,2]
[373392749,1752983460940,-480.0,0.00019397,2]
[373392750,1752983460950,-1063.23,0.00019397,2]
[373392751,1752983460959,-420.81751818,0.00019397,2]
[373392752,1752983460970,-480.0,0.00019397,2]
[373392753,1752983460981,-1415.84,0.00019397,2]
[373392754,1752983460991,-480.0,0.00019397,2]
[373392755,1752983461001,-480.0,0.00019397,2]
[373392756,1752983461010,-636.97,0.00019397,2]
[373392757,1752983461019,-480.0,0.00019397,2]
[373392758,1752983461029,-1525.7,0.00019397,2]
[373392759,1752983461039,-963.4,0.00019397,2]
[373392760,1752983461048,-1895.08,0.00019397,2]
[373392761,1752983461057,-1610.82,0.00019397,2]
[373392762,1752983461066,-480.0,0.00019397,2]
[373392763,1752983461076,-1215.54,0.00019397,2]
[373392764,1752983461086,-480.0,0.00019397,2]
[373392765,1752983461095,-1097.31,0.00019397,2]
[373392766,1752983461104,-824.3,0.00019397,2]
[373392767,1752983461114,-574.78,0.00019397,2]
[373392768,1752983461123,-1533.87,0.00019397,2]
[373392769,1752983461133,-2871.0,0.00019397,2]
[373392770,1752983461142,-480.0,0.00019397,2]
[373392771,1752983461151,-658.86,0.00019397,2]
[373392772,1752983461161,-308.60746448,0.00019397,2]
[373392773,1752983461170,-480.0,0.00019397,2]
[373392774,1752983461179,-779.13,0.00019397,2]
[373392775,1752983461189,-480.0,0.00019397,2]
[373392776,1752983461198,-715.66,0.00019397,2]
[373392777,1752983461207,-256.53310039,0.00019397,2]
[373392778,1752983461217,-534.74482318,0.00019397,2]
[373392779,1752983461226,-480.0,0.00019397,2]
[373392780,1752983461235,-1144.05,0.00019397,2]
[373392781,1752983461245,-480.0,0.00019397,2]
[373392782,1752983461255,-480.0,0.00019397,2]
[373392783,1752983461265,-2201.2,0.00019397,2]
[373392784,1752983461275,-698.78,0.00019397,2]
[373392785,1752983461285,-480.0,0.00019397,2]
[373392786,1752983461295,-808.57,0.00019397,2]
[373392787,1752983461304,-480.0,0.00019397,2]
[373392788,1752983461314,-801.49,0.00019397,2]
[373392789,1752983461324,-1015.45,0.00019397,2]
[373392790,1752983461334,-480.0,0.00019397,2]
[373392791,1752983461343,-735.6,0.00019397,2]
[373392792,1752983461353,-687.01,0.00019397,2]
[373392793,1752983461362,-744.84,0.00019397,2]
[373392794,1752983461371,-1419.47,0.00019397,2]
[373392795,1752983461380,-1347.49,0.00019397,2]
[373392796,1752983461390,-558.96,0.00019397,2]
[373392797,1752983461399,-1138.92,0.00019397,2]
[373392798,1752983461408,-767.14,0.00019397,2]
[373392799,1752983461418,-2980.46,0.00019397,2]
[373392800,1752983461427,-480.0,0.00019397,2]
[373392801,1752983461437,-2554.58,0.00019397,2]
[373392802,1752983461448,-480.0,0.00019397,2]
[373392803,1752983461457,-5450.5,0.00019397,2]
[373392804,1752983461467,-1452.34,0.00019397,2]
[373392805,1752983461478,-480.0,0.00019397,2]
[373392806,1752983461487,-963.43,0.00019397,2]
[373392807,1752983461497,-480.0,0.00019397,2]
[373392808,1752983461507,-560.16,0.00019397,2]
[373392809,1752983461516,-522.13,0.00019397,2]
[373392810,1752983461528,-871.9,0.00019397,2]
[373392811,1752983461537,-5052.22,0.00019397,2]
[373392812,1752983461546,-480.0,0.00019397,2]
[373392813,1752983461555,-480.0,0.00019397,2]
[373392814,1752983461564,-3565.47,0.00019397,2]
[373392815,1752983461574,-754.49,0.00019397,2]
[373392816,1752983461583,-2105.48,0.00019397,2]
[373392817,1752983461593,-480.0,0.00019397,2]
[373392818,1752983461602,-480.0,0.00019397,2]
[373392819,1752983461611,-1124.66,0.00019397,2]
[373392820,1752983461620,-1024.27,0.00019397,2]
[373392821,1752983461629,-480.0,0.00019397,2]
[373392822,1752983461639,-1090.09,0.00019397,2]
[373392823,1752983461647,-480.0,0.00019397,2]
[373392824,1752983461658,-219.06645014,0.00019397,2]
[373392825,1752983461667,-480.0,0.00019397,2]
[373392826,1752983461678,-480.0,0.00019397,2]
[373392827,1752983461687,-480.0,0.00019397,2]
[373392828,1752983461696,-1611.77,0.00019397,2]
[373392829,1752983461706,-962.24,0.00019397,2]
[373392830,1752983461715,-981.4,0.00019397,2]
[373392831,1752983461725,-574.47,0.00019397,2]
[373392832,1752983461734,-1356.81,0.00019397,2]
[373392833,1752983461743,-480.0,0.00019397,2]
[373392834,1752983461752,-546.15,0.00019397,2]
[373392835,1752983461761,-3984.36,0.00019397,2]
[373392836,1752983461770,-480.0,0.00019397,2]
[373392837,1752983461780,-480.0,0.00019397,2]
[373392838,1752983461789,-480.0,0.00019397,2]
[373392839,1752983461798,-926.3,0.00019397,2]
[373392840,1752983461807,-1367.25,0.00019397,2]
[373392841,1752983461817,-6148.42,0.00019397,2]
[373392842,1752983461826,-157.56,0.00019397,2]
[373392843,1752983461835,-2405.36,0.00019397,2]
[373392844,1752983461844,-737.19,0.00019397,2]
[373392845,1752983461854,-480.0,0.00019397,2]
[373392846,1752983461863,-719.9,0.00019397,2]
[373392847,1752983461872,-480.0,0.00019397,2]
[373392848,1752983461882,-1466.72,0.00019397,2]
[373392849,1752983461892,-2248.06,0.00019397,2]
[373392850,1752983461902,-480.0,0.00019397,2]
[373392851,1752983461911,-2361.41,0.00019397,2]
[373392852,1752983461923,-588.73,0.00019397,2]
[373392853,1752983461935,-1192.49,0.00019397,2]
[373392854,1752983461944,-634.94,0.00019397,2]
[373392855,1752983461953,-480.0,0.00019397,2]
[373392857,1752983461963,-4793.06,0.00019397,2]
[373392859,1752983461973,-9577.74,0.00019397,2]
[373392861,1752983461982,-518.42,0.00019397,2]
[373392863,1752983461992,-480.0,0.00019397,2]
[373392865,1752983462003,-1250.81,0.00019397,2]
[373392867,1752983462013,-1405.91,0.00019397,2]
[373392869,1752983462023,-480.0,0.00019397,2]
[373392871,1752983462032,-480.0,0.00019397,2]
[373392873,1752983462042,-1082.66,0.00019397,2]
[373392875,1752983462051,-480.0,0.00019397,2]
[373392877,1752983462060,-480.0,0.00019397,2]
[373392878,1752983462070,-480.0,0.00019397,2]
[373392879,1752983462080,-786.35,0.00019397,2]
[373392880,1752983462090,-1036.03,0.00019397,2]
[373392881,1752983462100,-480.0,0.00019397,2]
[373392882,1752983462109,-526.0,0.00019397,2]
[373392883,1752983462121,-514.43,0.00019397,2]
[373392884,1752983462131,-1678.83,0.00019397,2]
[373392885,1752983462140,-1121.35,0.00019397,2]
[373392886,1752983462149,-831.0,0.00019397,2]
[373392887,1752983462158,-480.0,0.00019397,2]
[373392888,1752983462167,-773.36,0.00019397,2]
[373392889,1752983462176,-718.25,0.00019397,2]
[373392890,1752983462185,-805.94,0.00019397,2]
[373392891,1752983462195,-763.26,0.00019397,2]
[373392892,1752983462205,-601.17,0.00019397,2]
[373392893,1752983462214,-665.29,0.00019397,2]
[373392894,1752983462223,-480.0,0.00019397,2]
[373392895,1752983462232,-480.0,0.00019397,2]
[373392896,1752983462242,-1187.59,0.00019397,2]
[373392897,1752983462251,-480.0,0.00019397,2]
[373392898,1752983462261,-480.0,0.00019397,2]
[373392899,1752983462270,-3301.21,0.00019397,2]
[373392900,1752983462280,-480.0,0.00019397,2]
[373392901,1752983462289,-480.0,0.00019397,2]
[373392902,1752983462298,-290.49949811,0.00019397,2]
[373392903,1752983462307,-480.0,0.00019397,2]
[373392904,1752983462317,-480.0,0.00019397,2]
[373392905,1752983462326,-821.65,0.00019397,2]
[373392906,1752983462335,-1685.67,0.00019397,2]
[373392907,1752983462344,-3695.88,0.00019397,2]
[373392908,1752983462354,-4076.0,0.00019397,2]
[373392909,1752983462363,-480.0,0.00019397,2]
[373392910,1752983462373,-670.23,0.00019397,2]
[373392911,1752983462382,-1374.67,0.00019397,2]
[373392912,1752983462391,-731.19,0.00019397,2]
[373392913,1752983462401,-480.0,0.00019397,2]
[373392914,1752983462410,-480.0,0.00019397,2]
[373392915,1752983462419,-1193.89,0.00019397,2]
[373392916,1752983462428,-1796.15,0.00019397,2]
[373392917,1752983462438,-1151.96,0.00019397,2]
[373392918,1752983462448,-850.76,0.00019397,2]
[373392919,1752983462458,-480.0,0.00019397,2]
[373392920,1752983462467,-480.0,0.00019397,2]
[373392921,1752983462477,-1267.3,0.00019397,2]
[373392922,1752983462489,-480.0,0.00019397,2]
[373392923,1752983462499,-1053.53,0.00019397,2]
[373392924,1752983462509,-536.82,0.00019397,2]
[373392925,1752983462518,-741.52,0.00019397,2]
[373392926,1752983462527,-18216.3649382,0.000194,2]
[373392927,1752983462537,-2665.17445914,0.00019407,2]
[373392928,1752983462546,-168.0,0.00019413,2]
[373392929,1752983462556,-168.0,0.00019423,2]
[373392930,1752983462567,-1262.02,0.0001943,2]
[373392931,1752983462577,-392.92115914,0.00019452,2]
[373392932,1752983462586,-150.0,0.00019452,2]
[373392933,1752983462596,-500.0,0.00019452,2]
[373392934,1752983462607,-150.0,0.00019452,2]
[373392936,1752983462618,-151.07551686,0.00019452,2]
[373392938,1752983462627,-500.0,0.00019452,2]
[373392940,1752983462636,-500.0,0.00019452,2]
[373392942,1752983462646,-150.0,0.00019452,2]
[373392944,1752983462655,-500.0,0.00019452,2]
[373392945,1752983462664,-150.0,0.00019452,2]
[373392946,1752983462673,-622.0,0.00019452,2]
[373392947,1752983462683,-500.0,0.00019452,2]
[373392949,1752983462692,-500.0,0.00019452,2]
[373392950,1752983462705,-500.0,0.00019452,2]
[373392951,1752983462715,-150.0,0.00019452,2]
[373392952,1752983462724,-150.0,0.00019452,2]
[373392953,1752983462733,-150.0,0.00019452,2]
[373392954,1752983462742,-500.0,0.00019452,2]
[373392955,1752983462752,-150.0,0.00019452,2]
[373392956,1752983462762,-2392.0,0.00019452,2]
[373392957,1752983462772,-500.0,0.00019452,2]
[373392958,1752983462782,-500.0,0.00019452,2]
[373392959,1752983462792,-2176.0,0.00019452,2]
[373392960,1752983462802,-500.0,0.00019452,2]
[373392961,1752983462812,-252.63239874,0.00019452,2]
[373392962,1752983462822,-150.0,0.00019452,2]
[373392963,1752983462832,-500.0,0.00019452,2]
[373392964,1752983462842,-233.98916447,0.00019452,2]
[373392965,1752983462852,-500.0,0.00019452,2]
[373392966,1752983462862,-500.0,0.00019452,2]
[373392967,1752983462872,-500.0,0.00019452,2]
[373392968,1752983462882,-1149.0,0.00019452,2]
[373392969,1752983462892,-159.94938587,0.00019452,2]
[373392970,1752983462901,-168.0,0.00019453,2]
[373392971,1752983462911,-386.5,0.00019455,7]
[373392972,1752983462924,-759.79,0.00019492,2]
[373392973,1752983462935,-620.49,0.00019492,2]
[373392974,1752983462944,-770.66,0.00019492,2]
[373392975,1752983462955,-515.28146216,0.00019495,2]
[373392976,1752983462964,-759.79,0.000195,2]
[373392977,1752983462974,-620.49,0.000195,2]
[373392978,1752983462983,-770.66,0.000195,2]
[373392979,1752983462994,-759.79,0.00019505,2]
[373392980,1752983463005,-620.49,0.00019505,2]
[373392981,1752983463015,-770.66,0.00019505,2]
[373392982,1752983463025,-405.909386,0.00019506,2]
[373392983,1752983463035,-347.586308,0.00019506,2]
[373392984,1752983463045,-524.535421,0.00019506,2]
[373392985,1752983463055,-480.0,0.00019506,2]
[373392986,1752983463065,-480.0,0.00019506,2]
[373392987,1752983463075,-480.0,0.00019506,2]
[373392988,1752983463085,-480.0,0.00019506,2]
[373392989,1752983463095,-480.0,0.00019506,2]
[373392990,1752983463105,-480.0,0.00019506,2]
[373392991,1752983463115,-480.0,0.00019506,2]
[373392992,1752983463125,-480.0,0.00019506,2]
[373392993,1752983463135,-480.0,0.00019506,2]
[373392994,1752983463145,-480.0,0.00019506,2]
[373392995,1752983463155,-480.0,0.00019506,2]
[373392996,1752983463164,-480.0,0.00019506,2]
[373392997,1752983463175,-480.0,0.00019506,2]
[373392998,1752983463187,-480.0,0.00019506,2]
[373392999,1752983463201,-480.0,0.00019506,2]
[373393000,1752983463211,-500.62334633,0.00019506,2]
[373393001,1752983463221,-480.0,0.00019506,2]
[373393002,1752983463231,-480.0,0.00019506,2]
[373393003,1752983463241,-480.0,0.00019506,2]
[373393004,1752983463251,-480.0,0.00019506,2]
[373393005,1752983463260,-195.51293063,0.00019506,2]
[373393006,1752983463270,-480.0,0.00019506,2]
[373393007,1752983463280,-488.57,0.00019506,2]
[373393008,1752983463290,-526.79,0.00019506,2]
[373393009,1752983463300,-480.0,0.00019506,2]
[373393010,1752983463311,-480.0,0.00019506,2]
[373393011,1752983463321,-480.0,0.00019506,2]
[373393012,1752983463330,-480.0,0.00019506,2]
[373393013,1752983463340,-652.55,0.00019506,2]
[373393014,1752983463350,-480.0,0.00019506,2]
[373393015,1752983463360,-480.0,0.00019506,2]
[373393016,1752983463369,-480.0,0.00019506,2]
[373393017,1752983463378,-480.0,0.00019506,2]
[373393018,1752983463388,-480.0,0.00019506,2]
[373393019,1752983463397,-480.0,0.00019506,2]
[373393020,1752983463407,-496.94,0.00019506,2]
[373393021,1752983463417,-480.0,0.00019506,2]
[373393022,1752983463427,-480.0,0.00019506,2]
[373393023,1752983463437,-480.0,0.00019506,2]
[373393024,1752983463446,-480.0,0.00019506,2]
[373393025,1752983463456,-480.0,0.00019506,2]
[373393026,1752983463465,-800.28,0.00019506,2]
[373393027,1752983463475,-480.0,0.00019506,2]
[373393028,1752983463484,-678.96,0.00019506,2]
[373393029,1752983463493,-497.02,0.00019506,2]
[373393030,1752983463503,-480.0,0.00019506,2]
[373393031,1752983463513,-480.0,0.00019506,2]
[373393032,1752983463522,-480.0,0.00019506,2]
[373393033,1752983463532,-621.54,0.00019506,2]
[373393034,1752983463541,-480.0,0.00019506,2]
[373393035,1752983463552,-480.0,0.00019506,2]
[373393036,1752983463562,-480.0,0.00019506,2]
[373393037,1752983463572,-480.0,0.00019506,2]
[373393038,1752983463582,-480.0,0.00019506,2]
[373393039,1752983463591,-480.0,0.00019506,2]
[373393040,1752983463601,-596.67,0.00019506,2]
[373393041,1752983463611,-602.0,0.00019506,2]
[373393042,1752983463621,-480.0,0.00019506,2]
[373393043,1752983463630,-480.0,0.00019506,2]
[373393044,1752983463640,-500.41,0.00019506,2]